bitfinex-derivatives/quotes_BTCF0:USTF0_20250422
["timestamp","ask_amount","ask_price","bid_price","bid_amount"]
[1745285512102,0.6829715,88538.0,88537.0,0.0041694]
[1745285512395,0.6929715,88538.0,88537.0,0.0041694]
[1745285512602,0.5800235,88538.0,88537.0,0.0041694]
[1745285513101,0.3779435,88538.0,88537.0,0.0041694]
[1745285513294,0.3780235,88538.0,88537.0,0.0041694]
[1745285513595,0.3779435,88538.0,88537.0,0.0041694]
[1745285513802,0.3780235,88538.0,88537.0,0.0041694]
[1745285516300,0.1129563,88528.0,88527.0,0.3608]
[1745285517404,0.1129563,88528.0,88527.0,0.37953606]
[1745285517800,0.4737563,88528.0,88527.0,0.01873606]
[1745285519094,0.4737563,88528.0,88527.0,0.002]
[1745285519406,0.6867163,88528.0,88527.0,0.0010001]
[1745285520000,0.9515163,88528.0,88527.0,0.0010001]
[1745285520207,1.1435163,88528.0,88527.0,0.0010001]
[1745285520511,0.1129665,88520.0,88519.0,0.0001694]
[1745285520705,0.5675265,88520.0,88519.0,0.0001694]
[1745285521008,0.6804945,88520.0,88519.0,0.0001694]
[1745285521209,0.8824945,88520.0,88519.0,0.0001694]
[1745285521405,1.1566945,88520.0,88519.0,0.0001694]
[1745285522309,1.1466945,88520.0,88519.0,0.0001694]
[1745285522900,0.5367265,88520.0,88519.0,0.0001694]
[1745285523195,0.3448065,88520.0,88519.0,0.0001694]
[1745285524010,0.3448065,88520.0,88519.0,0.0150717]
[1745285524606,0.7056065,88520.0,88519.0,0.0150717]
[1745285524911,0.7056065,88520.0,88519.0,0.0001694]
[1745285525608,0.1129616,88525.0,88524.0,0.1129589]
[1745285525801,0.09376,88527.0,88526.0,0.1129589]
[1745285525997,0.1129627,88525.0,88524.0,0.1129609]
[1745285526307,0.1129665,88520.0,88519.0,0.0001694]
[1745285526806,0.1129665,88520.0,88519.0,0.0011694]
[1745285527207,0.00010801,88538.0,88522.0,0.1129628]
[1745285527504,0.1129641,88522.0,88521.0,0.1129629]
[1745285527706,0.1129641,88522.0,88521.0,0.12977888]
[1745285527904,0.1129641,88522.0,88521.0,0.03211785]
[1745285528306,0.1129641,88522.0,88521.0,0.03223392]
[1745285528698,0.1129641,88522.0,88521.0,0.01530187]
[1745285530202,0.1129641,88522.0,88521.0,0.01630187]
[1745285531410,0.1129641,88522.0,88521.0,0.03308249]
[1745285532507,0.1129641,88522.0,88521.0,0.14604769]
[1745285532709,0.1130441,88522.0,88521.0,0.14604231]
[1745285533110,0.1129641,88522.0,88521.0,0.22507711]
[1745285533412,0.1130441,88522.0,88521.0,0.22507711]
[1745285533707,0.1130441,88522.0,88521.0,0.33804231]
[1745285534110,0.1129641,88522.0,88521.0,0.22507711]
[1745285534407,0.1130441,88522.0,88521.0,0.22507711]
[1745285534612,0.1130441,88522.0,88521.0,0.22498454]
[1745285534809,0.0564809,88524.0,88521.0,0.22498454]
[1745285535110,0.1129641,88522.0,88521.0,0.20830187]
[1745285535303,0.1129641,88522.0,88521.0,0.22406895]
[1745285536404,0.1129641,88522.0,88521.0,0.22396772]
[1745285537007,0.1129641,88522.0,88521.0,0.20830187]
[1745285537208,0.1129641,88522.0,88521.0,0.22399576]
[1745285537913,0.1129641,88522.0,88521.0,0.33696096]
[1745285538124,0.1129641,88522.0,88521.0,0.32126707]
[1745285538312,0.1129641,88522.0,88521.0,0.33700944]
[1745285539112,0.1129641,88522.0,88521.0,0.22404424]
[1745285539506,0.1129641,88522.0,88521.0,0.36224424]
[1745285539907,0.1129641,88522.0,88521.0,0.22404424]
[1745285540106,0.1129641,88522.0,88521.0,0.22432958]
[1745285540412,0.1129641,88522.0,88521.0,0.03232958]
[1745285540619,0.4737641,88522.0,88521.0,8e-08]
[1745285540911,0.1129665,88520.0,88519.0,0.0001694]
[1745285541113,0.3149665,88520.0,88519.0,0.0001694]
[1745285541313,0.4279345,88520.0,88519.0,0.0001694]
[1745285541506,0.7733345,88520.0,88519.0,0.0001694]
[1745285542405,0.7733345,88520.0,88508.0,0.1294]
[1745285542406,0.1129806,88509.0,88508.0,0.1294]
[1745285543010,0.1129882,88503.0,88499.0,0.1229]
[1745285543621,0.1129882,88503.0,88495.0,0.1398]
[1745285544209,0.1129882,88503.0,88496.0,0.132]
[1745285544419,0.1129882,88503.0,88502.0,0.0070846]
[1745285544619,0.2471882,88503.0,88502.0,0.0070846]
[1745285545424,0.2471882,88503.0,88502.0,0.0080846]
[1745285545630,0.3407882,88503.0,88502.0,0.0080846]
[1745285546620,0.3408682,88503.0,88502.0,0.0080846]
[1745285547209,0.3408682,88503.0,88502.0,0.1210741]
[1745285547210,0.09368,88503.0,88502.0,0.1210741]
[1745285547611,0.00010801,88509.0,88508.0,0.1129818]
[1745285548118,0.1336,88521.0,88520.0,0.1129652]
[1745285548119,0.1129658,88521.0,88520.0,0.1129652]
[1745285548421,0.1501163,88531.0,88526.0,0.1129576]
[1745285548422,1.6937676,88528.0,88526.0,0.1129576]
[1745285548617,0.1129604,88527.0,88526.0,0.1129576]
[1745285549018,0.0566476,88528.0,88527.0,0.1129576]
[1745285549223,0.09364,88543.0,88526.0,0.31633159]
[1745285549416,0.1129401,88544.0,88543.0,0.1119324]
[1745285549717,0.0564674,88546.0,88545.0,0.1129346]
[1745285550222,0.0564674,88546.0,88545.0,0.3039346]
[1745285550514,0.00010801,88557.0,88556.0,0.1129206]
[1745285550719,0.1129193,88557.0,88556.0,0.1129206]
[1745285550914,0.1129193,88557.0,88556.0,0.1119206]
[1745285551117,0.1129193,88557.0,88556.0,0.3039206]
[1745285551314,0.11311769,88562.0,88561.0,0.1129142]
[1745285552123,0.1128938,88578.0,88577.0,0.1128938]
[1745285552514,0.11309064,88578.0,88577.0,0.1128938]
[1745285552715,0.1128938,88578.0,88577.0,0.1128938]
[1745285552917,0.1129738,88578.0,88577.0,0.1128938]
[1745285553129,0.1128938,88578.0,88577.0,0.3048938]
[1745285553418,0.0564418,88585.0,88584.0,0.1128836]
[1745285553917,0.0001694,88586.0,88585.0,0.1128836]
[1745285554113,0.1130517,88586.0,88585.0,0.31991051]
[1745285554616,0.1130517,88586.0,88585.0,0.31891051]
[1745285555416,0.1140517,88586.0,88585.0,0.31891051]
[1745285555617,0.1128737,88593.0,88592.0,0.1128734]
[1745285555808,0.1128737,88593.0,88592.0,0.12790031]
[1745285556013,0.2389737,88593.0,88592.0,0.12790031]
[1745285556214,0.2390537,88593.0,88592.0,0.31990031]
[1745285557007,0.2400537,88593.0,88592.0,0.31990031]
[1745285558013,0.2400537,88593.0,88592.0,0.3048734]
[1745285558419,0.2400537,88593.0,88592.0,0.192]
[1745285559111,0.12718,88593.0,88573.0,0.2052]
[1745285559308,0.1128917,88583.0,88582.0,0.0564434]
[1745285559515,0.056446,88579.0,88574.0,0.1268]
[1745285559718,0.056448,88576.0,88575.0,0.1128938]
[1745285559917,0.1128806,88588.0,88580.0,0.056445]
[1745285560215,0.3739769,88591.0,88590.0,0.1128773]
[1745285561813,0.1128874,88583.0,88582.0,0.1128866]
[1745285562313,0.1128874,88583.0,88582.0,0.3048866]
[1745285562511,0.2484874,88583.0,88582.0,0.192]
[1745285562716,0.3776874,88583.0,88582.0,0.192]
[1745285563219,0.3776874,88583.0,88582.0,0.001]
[1745285564323,0.0564394,88589.0,88588.0,0.1128798]
[1745285564717,0.0565194,88589.0,88588.0,0.1128798]
[1745285565224,0.1128862,88583.0,88582.0,0.001]
[1745285565818,0.1128925,88578.0,88577.0,0.1128934]
[1745285566520,0.1128976,88574.0,88573.0,0.3333]
[1745285566821,0.1128976,88574.0,88573.0,0.2052]
[1745285567418,0.2441976,88574.0,88573.0,0.2052]
[1745285567824,0.2441976,88574.0,88573.0,0.2072]
[1745285568923,0.1128976,88574.0,88573.0,0.002]
[1745285569222,0.1129027,88570.0,88569.0,0.0001694]
[1745285571421,0.1139027,88570.0,88569.0,0.0001694]
[1745285571922,0.1129027,88570.0,88569.0,0.0001694]
[1745285572122,0.1129827,88570.0,88569.0,0.1921694]
[1745285573022,0.1129827,88570.0,88569.0,0.32042721]
[1745285573226,0.1129827,88570.0,88569.0,0.32142721]
[1745285573426,8e-05,88570.0,88569.0,0.32142721]
[1745285573629,8e-05,88570.0,88569.0,0.99022721]
[1745285573818,8e-05,88570.0,88569.0,0.75022721]
[1745285574021,0.1129009,88572.0,88571.0,0.1129002]
[1745285574429,0.1129009,88572.0,88571.0,0.38888965]
[1745285574625,0.1129009,88572.0,88571.0,0.38889062]
[1745285574822,0.0564481,88576.0,88575.0,0.1128951]
[1745285575030,0.0564481,88576.0,88575.0,0.03258314]
[1745285575325,0.1889281,88576.0,88575.0,0.33747954]
[1745285575823,0.0565281,88576.0,88575.0,0.33747954]
[1745285576025,0.0564481,88576.0,88575.0,0.33750897]
[1745285576229,0.0565281,88576.0,88575.0,0.22561257]
[1745285576529,0.0564481,88576.0,88575.0,0.22561257]
[1745285576718,0.0565281,88576.0,88575.0,0.22561257]
[1745285576919,0.1877281,88576.0,88575.0,0.23870618]
[1745285577128,8e-05,88576.0,88575.0,0.68450258]
[1745285577429,0.1693415,88578.0,88577.0,0.169334]
[1745285577632,0.1693415,88578.0,88577.0,0.19868637]
[1745285578029,0.1693415,88578.0,88577.0,0.47004018]
[1745285578332,0.1693415,88578.0,88577.0,0.66204018]
[1745285578726,0.1693415,88578.0,88577.0,0.66304018]
[1745285579034,0.1693415,88578.0,88577.0,0.64678142]
[1745285579331,0.056446,88579.0,88578.0,0.1128925]
[1745285579627,0.056446,88579.0,88578.0,0.37458611]
[1745285580027,0.056446,88579.0,88578.0,0.3900518]
[1745285580219,0.0001694,88582.0,88581.0,0.1128887]
[1745285580420,0.0001694,88582.0,88581.0,0.12509419]
[1745285580623,0.0001694,88582.0,88581.0,0.140448]
[1745285581232,0.0001694,88582.0,88581.0,0.332448]
[1745285581430,0.0001694,88582.0,88581.0,0.333448]
[1745285581620,0.0002494,88582.0,88581.0,0.34880956]
[1745285581826,0.11298671,88589.0,88588.0,0.1128798]
[1745285582031,0.11298671,88589.0,88588.0,0.12508529]
[1745285582330,0.00010801,88589.0,88588.0,0.3324391]
[1745285582520,0.00010801,88589.0,88588.0,0.4685391]
[1745285582924,0.11298651,88589.0,88588.0,0.4685391]
[1745285583519,0.11398651,88589.0,88588.0,0.4685391]
[1745285584731,0.11398651,88589.0,88588.0,0.21965116]
[1745285585030,0.11298651,88589.0,88588.0,0.21965116]
[1745285585229,0.11298651,88589.0,88588.0,0.02765116]
[1745285586133,0.11298651,88589.0,88570.0,0.2052]
[1745285586134,0.1128964,88575.0,88570.0,0.2052]
[1745285586435,0.1128964,88575.0,88574.0,0.28014738]
[1745285586635,0.2478,88576.0,88575.0,0.1128964]
[1745285586835,0.3606951,88576.0,88575.0,0.2411964]
[1745285587829,0.3606951,88576.0,88575.0,0.2421964]
[1745285588235,0.3606951,88576.0,88575.0,0.2411964]
[1745285588435,0.3606951,88576.0,88575.0,0.2421964]
[1745285588831,0.3606951,88576.0,88575.0,0.2411964]
[1745285589026,0.3607751,88576.0,88575.0,0.2431964]
[1745285589231,0.3607751,88576.0,88575.0,0.4351964]
[1745285589932,0.3607751,88576.0,88575.0,0.194]
[1745285590134,0.3607751,88576.0,88575.0,0.002]
[1745285590731,0.3607751,88576.0,88575.0,0.1148964]
[1745285591535,0.2478,88576.0,88575.0,0.1148964]
[1745285591730,0.12518,88576.0,88575.0,0.1148964]
[1745285592041,0.0564457,88579.0,88578.0,0.1128913]
[1745285592340,0.1129751,88576.0,88575.0,0.3068953]
[1745285594243,0.1129751,88576.0,88575.0,0.3058953]
[1745285595040,0.1129751,88576.0,88575.0,0.3068953]
[1745285595542,0.1129751,88576.0,88575.0,0.4668953]
[1745285595744,0.1129751,88576.0,88575.0,0.7368953]
[1745285595946,0.1129751,88576.0,88575.0,0.3068953]
[1745285596152,0.1129751,88576.0,88575.0,0.1148953]
[1745285596444,0.1129751,88576.0,88575.0,0.002]
[1745285597248,0.3596751,88576.0,88575.0,0.002]
[1745285598648,0.3596751,88576.0,88575.0,0.001]
[1745285599252,0.4825751,88576.0,88575.0,0.001]
[1745285599456,0.1129027,88570.0,88569.0,0.0001694]
[1745285600352,0.3575027,88570.0,88569.0,0.0001694]
[1745285600843,0.3575027,88570.0,88557.0,0.3608]
[1745285600844,0.357504,88570.0,88557.0,0.3608]
[1745285601049,0.112918,88558.0,88557.0,0.3608]
[1745285601244,0.1129295,88549.0,88543.0,0.2052]
[1745285601448,0.1129295,88549.0,88542.0,0.22116245]
[1745285601756,0.1229295,88549.0,88542.0,0.22116245]
[1745285601948,0.4858615,88549.0,88548.0,0.08029594]
[1745285602151,0.1129372,88543.0,88542.0,0.22116245]
[1745285602350,0.2061772,88543.0,88542.0,0.22116245]
[1745285602550,0.3191172,88543.0,88542.0,0.22116245]
[1745285602950,0.9188172,88543.0,88542.0,0.22116245]
[1745285603155,1.1108172,88543.0,88542.0,0.22116245]
[1745285603559,0.1129397,88541.0,88540.0,0.0001694]
[1745285603758,0.4937397,88541.0,88540.0,0.0001694]
[1745285603967,0.6066837,88541.0,88540.0,0.0001694]
[1745285604152,1.0412837,88541.0,88540.0,0.0001694]
[1745285607855,0.112964,88522.0,88521.0,0.3608]
[1745285608360,0.1129844,88506.0,88505.0,0.2305857]
[1745285608758,0.1286,88507.0,88506.0,0.1129844]
[1745285608960,0.1286,88507.0,88505.0,0.1176]
[1745285608961,0.0564888,88512.0,88511.0,0.112978]
[1745285609160,0.0564888,88512.0,88511.0,0.473778]
[1745285609559,0.0564888,88512.0,88511.0,0.3608]
[1745285609766,0.3094888,88512.0,88511.0,0.3608]
[1745285610365,0.1847888,88512.0,88511.0,0.476778]
[1745285610558,0.1847888,88512.0,88511.0,0.597078]
[1745285610963,0.1847888,88512.0,88511.0,0.476778]
[1745285611357,0.1847888,88512.0,88511.0,0.597078]
[1745285611667,0.1847888,88512.0,88511.0,0.601078]
[1745285612168,0.7703,88545.0,88524.0,0.1129614]
[1745285612363,0.1129472,88539.0,88524.0,0.17]
[1745285612563,0.112955,88531.0,88530.0,0.1129534]
[1745285612764,0.112955,88529.0,88528.0,0.3608]
[1745285612969,0.1129589,88526.0,88525.0,0.2469]
[1745285613166,0.1129589,88526.0,88525.0,0.5518601]
[1745285613863,0.1129589,88526.0,88525.0,0.3158]
[1745285614269,8e-05,88531.0,88530.0,0.1129538]
[1745285614470,0.1129525,88531.0,88530.0,0.1129538]
[1745285614771,0.113118,88534.0,88533.0,0.1129499]
[1745285615068,0.113118,88534.0,88533.0,0.3049499]
[1745285616065,0.113118,88534.0,88533.0,0.4159499]
[1745285616365,0.113118,88534.0,88533.0,0.4059499]
[1745285616966,1.63648,88548.0,88542.0,0.1129384]
[1745285617162,1.63648,88548.0,88542.0,0.52635734]
[1745285617163,0.2062172,88543.0,88542.0,0.52635734]
[1745285617465,0.2062172,88543.0,88542.0,0.31635734]
[1745285617667,0.2062972,88543.0,88542.0,0.43745734]
[1745285617868,0.09336,88543.0,88542.0,0.65745734]
[1745285618170,0.1130172,88543.0,88542.0,0.53745734]
[1745285618372,0.1130172,88543.0,88542.0,0.4260384]
[1745285619367,8e-05,88543.0,88542.0,0.6274538]
[1745285619568,0.0564617,88554.0,88553.0,0.1129231]
[1745285619770,0.1693852,88554.0,88553.0,0.1129231]
[1745285619967,0.0564594,88558.0,88557.0,0.2258336]
[1745285620165,0.05660321,88561.0,88560.0,0.1129155]
[1745285620366,0.00014581,88561.0,88560.0,0.1129155]
[1745285620670,0.1129942,88561.0,88560.0,0.1683727]
[1745285621172,0.1129942,88561.0,88560.0,0.3603727]
[1745285621674,8e-05,88561.0,88560.0,0.3603727]
[1745285621874,8e-05,88561.0,88560.0,0.37484777]
[1745285622368,8e-05,88561.0,88560.0,0.48484777]
[1745285622564,0.1129095,88565.0,88564.0,0.1129104]
[1745285622760,8e-05,88561.0,88560.0,0.32039057]
[1745285622962,0.00010801,88569.0,88568.0,0.1129053]
[1745285623270,0.1129066,88567.0,88566.0,0.3608]
[1745285623768,0.1129066,88567.0,88566.0,0.37527507]
[1745285624163,0.3557066,88567.0,88566.0,0.01447507]
[1745285624483,0.1129091,88565.0,88564.0,0.001]
[1745285625366,0.4958211,88565.0,88564.0,0.0005812]
[1745285625767,0.1129282,88550.0,88549.0,0.1129286]
[1745285625968,0.1129282,88550.0,88549.0,0.12758484]
[1745285626876,0.2368282,88550.0,88549.0,0.01465624]
[1745285628371,0.2368282,88550.0,88549.0,0.01565624]
[1745285628568,0.2369082,88550.0,88549.0,0.01565624]
[1745285629373,0.4689082,88550.0,88549.0,0.01565624]
[1745285629768,0.5953082,88550.0,88549.0,0.01565624]
[1745285630468,0.5952282,88550.0,88549.0,0.01565624]
[1745285630668,0.5953082,88550.0,88549.0,0.01565624]
[1745285631171,0.4033082,88550.0,88549.0,0.01565624]
[1745285631368,0.3633082,88550.0,88549.0,0.01565624]
[1745285631563,0.3632282,88550.0,88549.0,0.01565624]
[1745285631765,0.1130082,88550.0,88549.0,0.01565624]
[1745285631964,0.1129282,88550.0,88549.0,0.12858574]
[1745285632167,0.1130082,88550.0,88549.0,0.32058574]
[1745285632371,0.1130082,88550.0,88549.0,0.20765624]
[1745285633176,0.1130082,88550.0,88549.0,0.01565624]
[1745285634176,0.3560082,88550.0,88549.0,0.01565624]
[1745285634973,0.3560082,88550.0,88549.0,0.001]
[1745285636573,0.3560082,88550.0,88549.0,0.01565684]
[1745285637475,0.3660082,88550.0,88549.0,0.001]
[1745285639182,0.3660082,88550.0,88549.0,0.01575226]
[1745285640374,0.4789402,88550.0,88549.0,0.01575226]
[1745285643284,0.1129333,88546.0,88545.0,6e-08]
[1745285643483,0.1529333,88546.0,88545.0,6e-08]
[1745285643681,0.2658693,88546.0,88545.0,6e-08]
[1745285644180,0.9624693,88546.0,88545.0,6e-08]
[1745285644780,1.3719693,88546.0,88545.0,6e-08]
[1745285646178,1.1219693,88546.0,88545.0,6e-08]
[1745285646381,1.2151693,88546.0,88545.0,6e-08]
[1745285646678,1.4651693,88546.0,88537.0,0.0001694]
[1745285646873,0.4737435,88538.0,88537.0,6e-08]
[1745285647083,0.7237435,88538.0,88537.0,6e-08]
[1745285647280,1.2786915,88538.0,88537.0,6e-08]
[1745285647674,1.5329915,88538.0,88537.0,6e-08]
[1745285647883,1.2829915,88538.0,88537.0,6e-08]
[1745285648788,1.6924915,88538.0,88537.0,6e-08]
[1745285648976,1.9424915,88538.0,88537.0,6e-08]
[1745285649481,0.1129538,88530.0,88529.0,6e-08]
[1745285649682,1.0364538,88530.0,88529.0,6e-08]
[1745285649879,1.06489007,88530.0,88529.0,6e-08]
[1745285650080,1.35009007,88530.0,88529.0,6e-08]
[1745285650278,1.60039007,88530.0,88529.0,6e-08]
[1745285650487,1.60047007,88530.0,88529.0,6e-08]
[1745285651483,1.70433915,88530.0,88529.0,6e-08]
[1745285651975,1.70733915,88530.0,88529.0,6e-08]
[1745285652175,0.1129869,88504.0,88503.0,0.129]
[1745285652376,0.2061869,88504.0,88503.0,0.129]
[1745285652581,0.2061869,88504.0,88503.0,0.2567]
[1745285652777,0.4560869,88504.0,88503.0,0.2567]
[1745285652979,0.2061869,88504.0,88503.0,0.2567]
[1745285653584,0.4560869,88504.0,88503.0,0.129]
[1745285653987,0.3284869,88504.0,88503.0,0.129]
[1745285654293,0.2061869,88504.0,88503.0,0.2567]
[1745285654679,0.2062669,88504.0,88503.0,0.2567]
[1745285655287,0.3353669,88504.0,88503.0,0.2567]
[1745285655491,0.4556669,88504.0,88503.0,0.129]
[1745285655691,0.4566669,88504.0,88503.0,0.129]
[1745285655994,0.5566669,88504.0,88503.0,0.129]
[1745285656196,0.5666669,88504.0,88503.0,0.129]
[1745285656389,0.4566669,88504.0,88503.0,0.129]
[1745285657084,0.4566669,88504.0,88503.0,0.1284]
[1745285657085,0.4666669,88504.0,88503.0,0.1284]
[1745285657585,0.4656669,88504.0,88503.0,0.1284]
[1745285657788,0.4666669,88504.0,88503.0,0.1284]
[1745285659178,0.4656669,88504.0,88503.0,0.1284]
[1745285659379,0.4666669,88504.0,88503.0,0.1284]
[1745285660988,0.4676669,88504.0,88503.0,0.1284]
[1745285661180,0.35468,88504.0,88502.0,0.0050846]
[1745285661380,0.1129959,88497.0,88496.0,0.1205]
[1745285661585,0.5437959,88497.0,88496.0,0.1205]
[1745285661782,0.5437959,88497.0,88484.0,0.1275]
[1745285661783,0.0565019,88491.0,88484.0,0.1275]
[1745285662085,0.1130214,88477.0,88461.0,0.2052]
[1745285662289,0.5669014,88477.0,88476.0,0.01970775]
[1745285662989,0.6865014,88477.0,88476.0,0.0050861]
[1745285663390,0.7865014,88477.0,88476.0,0.0050861]
[1745285664187,0.7865014,88477.0,88476.0,0.0070861]
[1745285664692,0.0001695,88485.0,88476.0,0.0070861]
[1745285664888,0.0001695,88485.0,88480.0,0.1130153]
[1745285664889,0.1130175,88481.0,88480.0,0.1130153]
[1745285665085,0.1130175,88481.0,88480.0,0.12798514]
[1745285665286,0.1130175,88481.0,88480.0,0.14024368]
[1745285665994,0.1130143,88483.0,88482.0,0.1130137]
[1745285666291,0.0565074,88483.0,88482.0,0.21922838]
[1745285668191,0.0565074,88483.0,88482.0,0.2192713]
[1745285668595,0.0565074,88483.0,88482.0,0.2232713]
[1745285669891,0.5273074,88483.0,88482.0,0.22320478]
[1745285670085,0.6464074,88483.0,88482.0,0.1658835]
[1745285670291,0.8835234,88483.0,88482.0,0.0152368]
[1745285671101,0.1130214,88477.0,88476.0,0.0050861]
[1745285671394,0.4838214,88477.0,88476.0,0.0050861]
[1745285672190,0.7319214,88477.0,88476.0,0.0050861]
[1745285672391,0.7319214,88477.0,88476.0,0.0060861]
[1745285672698,0.7319214,88477.0,88476.0,0.02110958]
[1745285673095,0.7219214,88477.0,88476.0,0.02210958]
[1745285673994,0.8219214,88477.0,88476.0,0.02210958]
[1745285674198,0.8229214,88477.0,88476.0,0.02010958]
[1745285674801,0.8239214,88477.0,88476.0,0.02010958]
[1745285675701,0.83442894,88477.0,88476.0,0.02010958]
[1745285675900,0.83542894,88477.0,88476.0,0.02010958]
[1745285676209,0.8239214,88477.0,88476.0,0.02010958]
[1745285676506,0.8229214,88477.0,88476.0,0.02010958]
[1745285677109,0.8229214,88477.0,88476.0,0.0050861]
[1745285678812,0.8229214,88477.0,88476.0,0.01997085]
[1745285679605,0.8230014,88477.0,88476.0,0.01997085]
[1745285680500,0.6988214,88477.0,88476.0,0.01997085]
[1745285680722,0.4749014,88477.0,88476.0,0.01997085]
[1745285680899,0.4748214,88477.0,88476.0,0.01997085]
[1745285681108,0.4748214,88477.0,88476.0,0.21197085]
[1745285681309,0.4749014,88477.0,88476.0,0.21197085]
[1745285681506,0.4749014,88477.0,88476.0,0.22827545]
[1745285681507,0.2071414,88477.0,88476.0,0.22827545]
[1745285681805,0.2072214,88477.0,88476.0,0.34129944]
[1745285682105,0.1140214,88477.0,88476.0,0.34129944]
[1745285682409,0.1141014,88477.0,88476.0,0.34129944]
[1745285683006,0.1141014,88477.0,88476.0,0.22827545]
[1745285683207,0.1141014,88477.0,88476.0,0.22927545]
[1745285683516,0.1131014,88477.0,88476.0,0.22927545]
[1745285684300,0.1131014,88477.0,88476.0,0.23027545]
[1745285684704,8e-05,88477.0,88476.0,0.34329815]
[1745285684900,0.09312,88481.0,88480.0,0.1130176]
[1745285685102,0.2061374,88481.0,88480.0,0.33249642]
[1745285685306,0.2061374,88481.0,88480.0,0.33620935]
[1745285685508,0.2061374,88481.0,88480.0,0.23538861]
[1745285685708,0.2062174,88481.0,88480.0,0.36428861]
[1745285686409,0.2062174,88481.0,88480.0,0.36526768]
[1745285687209,0.3296174,88481.0,88480.0,0.36626768]
[1745285687610,0.2062174,88481.0,88480.0,0.36626768]
[1745285688610,0.2061374,88481.0,88480.0,0.35408935]
[1745285688909,0.2062174,88481.0,88480.0,0.35408935]
[1745285689106,0.3251174,88481.0,88480.0,0.35408935]
[1745285689708,0.3251174,88481.0,88480.0,0.35308935]
[1745285690217,0.3251174,88481.0,88480.0,0.35208935]
[1745285690518,0.7859174,88481.0,88480.0,0.20688475]
[1745285690915,0.7858374,88481.0,88480.0,0.20688475]
[1745285691312,0.7859174,88481.0,88480.0,0.20688475]
[1745285692321,0.6670174,88481.0,88480.0,0.20688475]
[1745285692517,0.6669374,88481.0,88480.0,0.22330479]
[1745285692820,0.6670174,88481.0,88480.0,0.22330479]
[1745285693119,0.7840174,88481.0,88480.0,0.22330479]
[1745285693519,0.6840174,88481.0,88480.0,0.22330479]
[1745285693818,0.7740174,88481.0,88480.0,0.19390123]
[1745285694116,0.7740174,88481.0,88480.0,0.01521351]
[1745285694521,0.1130214,88477.0,88476.0,1e-08]
[1745285694823,0.6038214,88477.0,88476.0,1e-08]
[1745285695510,0.9668454,88477.0,88476.0,1e-08]
[1745285695915,0.1130316,88469.0,88468.0,1e-08]
[1745285696120,0.7438316,88469.0,88468.0,1e-08]
[1745285696318,0.8568676,88469.0,88468.0,1e-08]
[1745285696823,1.2247676,88469.0,88468.0,1e-08]
[1745285697121,1.4167676,88469.0,88468.0,1e-08]
[1745285697623,1.3037316,88469.0,88468.0,1e-08]
[1745285698117,1.1117316,88469.0,88468.0,1e-08]
[1745285698321,1.2247676,88469.0,88468.0,1e-08]
[1745285698710,1.2248476,88469.0,88468.0,1e-08]
[1745285699113,1.4168476,88469.0,88468.0,1e-08]
[1745285699919,1.1799316,88469.0,88468.0,1e-08]
[1745285700111,1.0808516,88469.0,88468.0,0.19200001]
[1745285700419,0.8109316,88469.0,88468.0,0.19200001]
[1745285701017,0.8109316,88469.0,88468.0,0.19300001]
[1745285701718,0.9109316,88469.0,88468.0,0.19300001]
[1745285701925,0.8109316,88469.0,88468.0,0.19300001]
[1745285702321,0.8109316,88469.0,88468.0,0.19200001]
[1745285703026,0.9109316,88469.0,88468.0,0.19200001]
[1745285703215,0.8109316,88469.0,88468.0,0.19200001]
[1745285703531,0.9109316,88469.0,88468.0,0.19200001]
[1745285704424,0.8109316,88469.0,88468.0,0.19200001]
[1745285704723,0.9209316,88469.0,88468.0,0.19200001]
[1745285705227,0.9209316,88469.0,88468.0,1e-08]
[1745285706514,0.8108516,88469.0,88468.0,1e-08]
[1745285706716,0.7280116,88469.0,88468.0,1e-08]
[1745285706915,0.3608,88469.0,88468.0,0.11303291]
[1745285707122,0.36088,88469.0,88468.0,0.30503291]
[1745285707321,0.4739116,88469.0,88468.0,0.30503291]
[1745285707524,0.4738316,88469.0,88468.0,0.31663246]
[1745285707717,0.4739116,88469.0,88468.0,0.55383291]
[1745285708119,0.4739116,88469.0,88468.0,0.55583291]
[1745285708519,0.4739116,88469.0,88468.0,0.55683291]
[1745285709626,0.09292,88474.0,88471.0,0.056514]
[1745285709825,0.09292,88474.0,88473.0,0.1130265]
[1745285710027,0.09292,88486.0,88482.0,0.1695194]
[1745285710221,0.0565069,88483.0,88482.0,0.1695194]
[1745285710417,0.1130125,88484.0,88483.0,0.2260297]
[1745285711317,0.1130125,88484.0,88483.0,0.4180297]
[1745285711524,0.1130125,88484.0,88483.0,0.192]
[1745285712222,0.1130125,88484.0,88483.0,0.3050137]
[1745285712923,0.1130125,88484.0,88483.0,0.3060137]
[1745285713327,0.1130125,88484.0,88483.0,0.3080137]
[1745285714437,0.0001695,88485.0,88484.0,0.1130125]
[1745285714725,0.0001695,88485.0,88484.0,0.2260285]
[1745285715230,0.1132607,88485.0,88484.0,0.305016]
[1745285715622,0.1132607,88485.0,88484.0,0.192]
[1745285716230,0.1132607,88485.0,88484.0,0.193]
[1745285716430,0.1132607,88485.0,88484.0,0.194]
[1745285717422,0.1131807,88485.0,88484.0,0.194]
[1745285717928,0.1132607,88485.0,88484.0,0.194]
[1745285718134,0.1232607,88485.0,88484.0,0.002]
[1745285719119,0.4840607,88485.0,88484.0,0.00192]
[1745285719326,0.4840607,88485.0,88468.0,1e-08]
[1745285719327,0.1130316,88469.0,88468.0,1e-08]
[1745285719617,0.5765516,88469.0,88468.0,1e-08]
[1745285720219,0.8194516,88469.0,88468.0,1e-08]
[1745285720623,0.8194516,88469.0,88468.0,0.00300001]
[1745285720932,0.8194516,88469.0,88468.0,0.00500001]
[1745285723130,0.7267316,88469.0,88468.0,0.00500001]
[1745285723338,0.8194516,88469.0,88468.0,0.00500001]
[1745285725627,0.8194516,88469.0,88468.0,1e-08]
[1745285726227,1.0114516,88469.0,88468.0,1e-08]
[1745285726731,1.1244876,88469.0,88468.0,1e-08]
[1745285726931,0.1130419,88461.0,88460.0,1e-08]
[1745285727125,0.5938419,88461.0,88460.0,1e-08]
[1745285727327,0.1130546,88451.0,88450.0,9e-08]
[1745285727523,0.8466146,88451.0,88450.0,9e-08]
[1745285728230,1.0929146,88451.0,88450.0,9e-08]
[1745285730531,1.0929946,88451.0,88450.0,9e-08]
[1745285731830,1.09284271,88451.0,88450.0,9e-08]
[1745285733228,1.00008271,88451.0,88450.0,9e-08]
[1745285733423,1.00868184,88451.0,88450.0,9e-08]
[1745285733629,1.10144184,88451.0,88450.0,9e-08]
[1745285733834,1.10136184,88451.0,88450.0,9e-08]
[1745285734033,1.10144184,88451.0,88450.0,9e-08]
[1745285734234,1.09284271,88451.0,88450.0,9e-08]
[1745285734428,1.09276271,88451.0,88450.0,9e-08]
[1745285734623,1.09284271,88451.0,88450.0,9e-08]